fUSD/lending_fUSD_20240429
["ID","MTS","AMOUNT","RATE_DAILY","PERIOD"]
[324838342,1714367439320,-500.0,0.00012898,2]
[324838344,1714367439329,-264.03180029,0.00012898,2]
[324838346,1714367439339,-419.12053515,0.00012898,2]
[324838349,1714367439351,-1529.82946485,0.00012898,2]
[324838351,1714367439360,-500.0,0.00012898,2]
[324838353,1714367439370,-473.26683071,0.00012898,2]
[324838355,1714367439379,-608.0,0.00012898,2]
[324838357,1714367439388,-500.0,0.00012898,2]
[324838359,1714367439397,-500.0,0.00012898,2]
[324838361,1714367439407,-566.93610231,0.00012898,2]
[324838363,1714367439415,-500.0,0.00012898,2]
[324838365,1714367439425,-765.88,0.00012898,2]
[324838367,1714367439434,-500.0,0.00012898,2]
[324838369,1714367439444,-516.75182067,0.00012898,2]
[324838371,1714367439453,-182.46136076,0.00012898,2]
[324838390,1714367439634,-500.0,0.00012898,2]
[324838392,1714367439645,-500.0,0.00012898,2]
[324838394,1714367439654,-500.0,0.00012898,2]
[324838396,1714367439662,-500.0,0.00012898,2]
[324838398,1714367439671,-515.43973456,0.00012898,2]
[324838400,1714367439681,-500.0,0.00012898,2]
[324838402,1714367439690,-500.0,0.00012898,2]
[324838404,1714367439699,-500.0,0.00012898,2]
[324838406,1714367439709,-500.0,0.00012898,2]
[324838408,1714367439718,-500.0,0.00012898,2]
[324838410,1714367439727,-550.96021756,0.00012898,2]
[324838412,1714367439737,-846.71302355,0.00012898,2]
[324838414,1714367439746,-303.27604873,0.00012899,2]
[324838416,1714367439755,-846.71302355,0.00012899,2]
[324838417,1714367439764,-1000.0,0.000129,2]
[324838418,1714367439773,-846.71302355,0.000129,2]
[324838419,1714367439782,-4285.70060187,0.000129,2]
[324838420,1714367439792,-303.27604873,0.000129,2]
[324838421,1714367439801,-186.3059364,0.00012979,2]
[324838422,1714367439811,-168.32649068,0.0001298,2]
[324838423,1714367439820,-427.33773077,0.00012982,2]
[324838424,1714367439829,-500.0,0.00012987,2]
[324838425,1714367439839,-284.14216856,0.00012987,2]
[324838426,1714367439848,-500.0,0.00012987,2]
[324838427,1714367439858,-363.92077602,0.00012987,2]
[324838428,1714367439867,-582.85,0.00012987,2]
[324838429,1714367439876,-500.0,0.00012987,2]
[324838430,1714367439885,-500.0,0.00012987,2]
[324838431,1714367439894,-500.0,0.00012987,2]
[324838432,1714367439904,-500.0,0.00012987,2]
[324838433,1714367439913,-500.0,0.00012987,2]
[324838434,1714367439922,-500.0,0.00012987,2]
[324838435,1714367439931,-155.16219208,0.00012988,2]
[324838436,1714367439940,-155.41962623,0.00012988,2]
[324838437,1714367439950,-155.26794325,0.00012988,2]
[324838438,1714367439959,-155.5035725,0.00012988,2]
[324838439,1714367439969,-2905.68765111,0.00012988,2]
[324838440,1714367439978,-238.23985667,0.00012988,2]
[324838441,1714367439987,-446.68502215,0.00012988,2]
[324838442,1714367439996,-161.08089566,0.00012988,2]
[324838443,1714367440006,-341.79005663,0.00012988,2]
[324838444,1714367440015,-326.63748045,0.00012988,2]
[324838445,1714367440025,-594.69304894,0.00012988,2]
[324838446,1714367440034,-500.0,0.00012988,2]
[324838447,1714367440044,-503.57076686,0.00012988,2]
[324838448,1714367440053,-167.58233418,0.00012988,2]
[324838449,1714367440062,-559.23688338,0.00012988,2]
[324838450,1714367440071,-500.0,0.00012988,2]
[324838451,1714367440081,-502.46826469,0.00012988,2]
[324838452,1714367440090,-497.2374768,0.00012988,2]
[324838453,1714367440099,-407.71064557,0.00012988,2]
[324838454,1714367440108,-1132.00221219,0.00012988,2]
[324838455,1714367440117,-506.9363968,0.00012988,2]
[324838456,1714367440126,-431.49167114,0.00012988,2]
[324838459,1714367440135,-630.38270225,0.00012988,2]
[324838460,1714367440145,-500.0,0.00012988,2]
[324838461,1714367440154,-455.09871238,0.00012988,2]
[324838462,1714367440163,-471.77929858,0.00012988,2]
[324838463,1714367440171,-500.0,0.00012988,2]
[324838464,1714367440180,-500.0,0.00012988,2]
[324838465,1714367440190,-500.0,0.00012988,2]
[324838466,1714367440199,-500.0,0.00012988,2]
[324838467,1714367440208,-500.0,0.00012988,2]
[324838468,1714367440217,-500.0,0.00012988,2]
[324838469,1714367440226,-2185.16896038,0.00012988,2]
[324838470,1714367440235,-155.23379738,0.00012988,2]
[324838471,1714367440244,-370.95390487,0.00012988,2]
[324838472,1714367440253,-2327.06359611,0.00012988,2]
[324838473,1714367440263,-502.51,0.00012988,2]
[324838474,1714367440272,-500.0,0.00012988,2]
[324838475,1714367440281,-500.0,0.00012988,2]
[324838476,1714367440291,-1317.77615422,0.00012988,2]
[324838477,1714367440301,-500.0,0.00012988,2]
[324838478,1714367440310,-500.0,0.00012988,2]
[324838479,1714367440319,-500.0,0.00012988,2]
[324838480,1714367440329,-500.0,0.00012988,2]
[324838481,1714367440337,-500.0,0.00012988,2]
[324838482,1714367440347,-588.76,0.00012988,2]
[324838483,1714367440355,-500.0,0.00012988,2]
[324838484,1714367440365,-500.0,0.00012988,2]
[324838485,1714367440374,-500.0,0.00012988,2]
[324838486,1714367440383,-500.0,0.00012988,2]
[324838487,1714367440391,-500.0,0.00012988,2]
[324838488,1714367440400,-500.0,0.00012988,2]
[324838489,1714367440410,-500.0,0.00012988,2]
[324838490,1714367440419,-906.82,0.00012988,2]
[324838491,1714367440428,-500.0,0.00012988,2]
[324838492,1714367440437,-500.0,0.00012988,2]
[324838493,1714367440446,-500.0,0.00012988,2]
[324838494,1714367440455,-500.0,0.00012988,2]
[324838495,1714367440464,-500.0,0.00012988,2]
[324838496,1714367440473,-983.98,0.00012988,2]
[324838497,1714367440482,-500.0,0.00012988,2]
[324838498,1714367440491,-500.0,0.00012988,2]
[324838499,1714367440499,-500.0,0.00012988,2]
[324838500,1714367440512,-500.0,0.00012988,2]
[324838501,1714367440522,-955.27,0.00012988,2]
[324838502,1714367440530,-500.0,0.00012988,2]
[324838503,1714367440540,-926.06,0.00012988,2]
[324838504,1714367440550,-500.0,0.00012988,2]
[324838505,1714367440560,-582.53,0.00012988,2]
[324838506,1714367440569,-1555.06,0.00012988,2]
[324838507,1714367440578,-500.0,0.00012988,2]
[324838508,1714367440587,-500.0,0.00012988,2]
[324838509,1714367440597,-521.2,0.00012988,2]
[324838510,1714367440607,-777.98,0.00012988,2]
[324838511,1714367440616,-705.72,0.00012988,2]
[324838512,1714367440625,-915.78,0.00012988,2]
[324838513,1714367440634,-815.07,0.00012988,2]
[324838514,1714367440643,-500.0,0.00012988,2]
[324838515,1714367440652,-500.0,0.00012988,2]
[324838516,1714367440661,-500.0,0.00012988,2]
[324838517,1714367440670,-500.0,0.00012988,2]
[324838518,1714367440679,-500.0,0.00012988,2]
[324838519,1714367440688,-500.0,0.00012988,2]
[324838520,1714367440696,-500.0,0.00012988,2]
[324838521,1714367440706,-500.0,0.00012988,2]
[324838522,1714367440715,-500.0,0.00012988,2]
[324838523,1714367440724,-2585.51,0.00012988,2]
[324838524,1714367440733,-1771.9,0.00012988,2]
[324838525,1714367440743,-712.82,0.00012988,2]
[324838526,1714367440751,-700.29,0.00012988,2]
[324838527,1714367440760,-500.0,0.00012988,2]
[324838528,1714367440770,-341.86709867,0.00012988,2]
[324838529,1714367440779,-500.0,0.00012988,2]
[324838530,1714367440788,-500.0,0.00012988,2]
[324838532,1714367440797,-500.0,0.00012988,2]
[324838534,1714367440806,-500.0,0.00012988,2]
[324838536,1714367440815,-500.0,0.00012988,2]
[324838538,1714367440824,-500.0,0.00012988,2]
[324838540,1714367440833,-4407.48,0.00012988,2]
[324838542,1714367440843,-500.0,0.00012988,2]
[324838544,1714367440852,-500.0,0.00012988,2]
[324838546,1714367440861,-500.0,0.00012988,2]
[324838548,1714367440871,-500.0,0.00012988,2]
[324838550,1714367440879,-500.0,0.00012988,2]
[324838552,1714367440889,-713.47,0.00012988,2]
[324838554,1714367440897,-500.0,0.00012988,2]
[324838556,1714367440906,-500.0,0.00012988,2]
[324838558,1714367440915,-1146.86,0.00012988,2]
[324838560,1714367440924,-500.0,0.00012988,2]
[324838562,1714367440933,-206.5487875,0.00012989,2]
[324838564,1714367440943,-835.53862974,0.00012989,2]
[324838566,1714367440952,-193.28492493,0.00012989,2]
[324838568,1714367440961,-424.8650293,0.00012989,2]
[324838571,1714367440975,-334.23819897,0.00012989,2]
[324838573,1714367440984,-500.0,0.00012989,2]
[324838575,1714367440993,-500.0,0.00012989,2]
[324838577,1714367441002,-500.0,0.00012989,2]
[324838579,1714367441011,-500.0,0.00012989,2]
[324838581,1714367441020,-507.79769964,0.00012989,2]
[324838583,1714367441029,-500.0,0.00012989,2]
[324838585,1714367441039,-500.0,0.00012989,2]
[324838587,1714367441048,-383.68,0.00012989,2]
[324838589,1714367441057,-511.06844343,0.00012989,2]
[324838591,1714367441066,-500.0,0.00012989,2]
[324838593,1714367441075,-500.0,0.00012989,2]
[324838595,1714367441084,-513.18248663,0.00012989,2]
[324838597,1714367441093,-500.0,0.00012989,2]
[324838599,1714367441102,-515.86117058,0.00012989,2]
[324838600,1714367441115,-500.0,0.00012989,2]
[324838601,1714367441124,-500.0,0.00012989,2]
[324838602,1714367441133,-636.95068674,0.00012989,2]
[324838603,1714367441141,-513.06040431,0.00012989,2]
[324838604,1714367441150,-500.0,0.00012989,2]
[324838605,1714367441159,-507.62488715,0.00012989,2]
[324838606,1714367441168,-500.0,0.00012989,2]
[324838607,1714367441177,-500.0,0.00012989,2]
[324838608,1714367441185,-500.0,0.00012989,2]
[324838609,1714367441194,-500.0,0.00012989,2]
[324838610,1714367441203,-500.0,0.00012989,2]
[324838611,1714367441211,-178.18186223,0.00012989,2]
[324838612,1714367441220,-631.62,0.00012989,2]
[324838613,1714367441230,-500.0,0.00012989,2]
[324838615,1714367441239,-500.0,0.00012989,2]
[324838617,1714367441248,-504.54710116,0.00012989,2]
[324838619,1714367441257,-517.45655503,0.00012989,2]
[324838621,1714367441266,-500.0,0.00012989,2]
[324838623,1714367441276,-500.0,0.00012989,2]
[324838625,1714367441286,-500.0,0.00012989,2]
[324838627,1714367441296,-500.0,0.00012989,2]
[324838629,1714367441305,-312.45323166,0.00012989,2]
[324838631,1714367441314,-500.0,0.00012989,2]
[324838633,1714367441323,-443.41169343,0.00012989,2]
[324838635,1714367441332,-500.0,0.00012989,2]
[324838637,1714367441341,-500.0,0.00012989,2]
[324838639,1714367441350,-500.0,0.00012989,2]
[324838641,1714367441359,-500.0,0.00012989,2]
[324838643,1714367441368,-500.0,0.00012989,2]
[324838645,1714367441378,-530.51518312,0.00012989,2]
[324838647,1714367441387,-505.92596409,0.00012989,2]
[324838649,1714367441396,-511.0171849,0.00012989,2]
[324838651,1714367441405,-500.0,0.00012989,2]
[324838653,1714367441415,-466.06123572,0.00012989,2]
[324838655,1714367441424,-564.56556473,0.00012989,2]
[324838657,1714367441433,-500.0,0.00012989,2]
[324838659,1714367441441,-500.0,0.00012989,2]
[324838661,1714367441450,-500.0,0.00012989,2]
[324838663,1714367441459,-230.84859612,0.00012989,2]
[324838665,1714367441468,-500.0,0.00012989,2]
[324838667,1714367441478,-500.0,0.00012989,2]
[324838669,1714367441487,-500.0,0.00012989,2]
[324838671,1714367441496,-500.0,0.00012989,2]
[324838673,1714367441505,-500.0,0.00012989,2]
[324838675,1714367441518,-500.0,0.00012989,2]
[324838677,1714367441527,-500.0,0.00012989,2]
[324838679,1714367441536,-319.92954953,0.00012989,2]
[324838681,1714367441547,-208.71244287,0.00012989,2]
[324838683,1714367441557,-500.0,0.00012989,2]
[324838685,1714367441566,-500.0,0.00012989,2]
[324838687,1714367441575,-500.0,0.00012989,2]
[324838690,1714367441586,-500.0,0.00012989,2]
[324838692,1714367441595,-500.0,0.00012989,2]
[324838694,1714367441604,-500.0,0.00012989,2]
[324838695,1714367441613,-500.0,0.00012989,2]
[324838697,1714367441623,-500.0,0.00012989,2]
[324838699,1714367441632,-500.0,0.00012989,2]
[324838701,1714367441641,-500.0,0.00012989,2]
[324838703,1714367441650,-500.0,0.00012989,2]
[324838705,1714367441659,-512.62841477,0.00012989,2]
[324838707,1714367441668,-500.0,0.00012989,2]
[324838710,1714367441678,-500.0,0.00012989,2]
[324838711,1714367441686,-619.90491593,0.00012989,2]
[324838714,1714367441696,-500.0,0.00012989,2]
[324838716,1714367441704,-500.0,0.00012989,2]
[324838717,1714367441713,-500.0,0.00012989,2]
[324838719,1714367441723,-2000.0,0.00012989,2]
[324838721,1714367441732,-150.0,0.00012989,2]
[324838724,1714367441741,-500.0,0.00012989,2]
[324838726,1714367441750,-500.0,0.00012989,2]
[324838728,1714367441759,-519.29237049,0.00012989,2]
[324838730,1714367441768,-500.0,0.00012989,2]
[324838732,1714367441777,-500.0,0.00012989,2]
[324838734,1714367441786,-500.0,0.00012989,2]
[324838735,1714367441796,-500.0,0.00012989,2]
[324838738,1714367441805,-160.04781037,0.00012989,2]
[324838740,1714367441814,-500.0,0.00012989,2]
[324838742,1714367441823,-500.0,0.00012989,2]
[324838744,1714367441832,-500.0,0.00012989,2]
[324838746,1714367441841,-500.0,0.00012989,2]
[324838748,1714367441850,-500.0,0.00012989,2]
[324838749,1714367441860,-512.33217343,0.00012989,2]
[324838751,1714367441869,-500.0,0.00012989,2]
[324838753,1714367441878,-500.0,0.00012989,2]
[324838755,1714367441887,-500.0,0.00012989,2]
[324838758,1714367441897,-500.0,0.00012989,2]
[324838760,1714367441906,-500.0,0.00012989,2]
[324838761,1714367441915,-500.0,0.00012989,2]
[324838763,1714367441924,-500.0,0.00012989,2]
[324838766,1714367441934,-500.0,0.00012989,2]
[324838767,1714367441943,-500.0,0.00012989,2]
[324838770,1714367441952,-184.67302855,0.00012989,2]
[324838772,1714367441961,-500.0,0.00012989,2]
[324838774,1714367441971,-500.0,0.00012989,2]
[324838776,1714367441981,-500.0,0.00012989,2]
[324838778,1714367441990,-500.0,0.00012989,2]
[324838779,1714367441999,-500.0,0.00012989,2]
[324838782,1714367442008,-500.0,0.00012989,2]
[324838783,1714367442017,-500.0,0.00012989,2]
[324838786,1714367442027,-500.0,0.00012989,2]
[324838787,1714367442036,-500.0,0.00012989,2]
[324838790,1714367442045,-224.81803556,0.00012989,2]
[324838792,1714367442055,-500.0,0.00012989,2]
[324838794,1714367442064,-175.87367961,0.00012989,2]
[324838796,1714367442073,-500.0,0.00012989,2]
[324838798,1714367442083,-500.0,0.00012989,2]
[324838799,1714367442092,-500.0,0.00012989,2]
[324838801,1714367442102,-426.24779569,0.00012989,2]
[324838803,1714367442111,-500.0,0.00012989,2]
[324838805,1714367442120,-500.0,0.00012989,2]
[324838808,1714367442130,-508.41275617,0.00012989,2]
[324838810,1714367442139,-500.0,0.00012989,2]
[324838811,1714367442148,-500.0,0.00012989,2]
[324838814,1714367442158,-500.0,0.00012989,2]
[324838816,1714367442167,-500.0,0.00012989,2]
[324838817,1714367442177,-500.0,0.00012989,2]
[324838820,1714367442188,-500.0,0.00012989,2]
[324838822,1714367442197,-500.0,0.00012989,2]
[324838824,1714367442206,-715.62,0.00012989,2]
[324838826,1714367442215,-500.0,0.00012989,2]
[324838828,1714367442224,-500.0,0.00012989,2]
[324838830,1714367442234,-500.0,0.00012989,2]
[324838832,1714367442243,-500.0,0.00012989,2]
[324838834,1714367442252,-3891.39,0.00012989,2]
[324838836,1714367442261,-500.0,0.00012989,2]
[324838838,1714367442271,-500.0,0.00012989,2]
[324838840,1714367442280,-254.91577206,0.00012989,2]
[324838842,1714367442290,-500.0,0.00012989,2]
[324838844,1714367442298,-500.0,0.00012989,2]
[324838846,1714367442307,-500.0,0.00012989,2]
[324838848,1714367442317,-1510.96,0.00012989,2]
[324838850,1714367442326,-150.32298959,0.00012989,2]
[324838852,1714367442335,-500.0,0.00012989,2]
[324838853,1714367442344,-500.0,0.00012989,2]
[324838856,1714367442353,-500.0,0.00012989,2]
[324838858,1714367442362,-2001.36,0.00012989,2]
[324838860,1714367442371,-500.0,0.00012989,2]
[324838861,1714367442380,-500.0,0.00012989,2]
[324838863,1714367442390,-500.0,0.00012989,2]
[324838866,1714367442399,-500.0,0.00012989,2]
[324838868,1714367442408,-500.0,0.00012989,2]
[324838870,1714367442418,-500.0,0.00012989,2]
[324838872,1714367442427,-432.61990053,0.00012989,2]
[324838874,1714367442436,-500.0,0.00012989,2]
[324838876,1714367442445,-511.77320537,0.00012989,2]
[324838878,1714367442455,-595.64102316,0.00012989,2]
[324838879,1714367442464,-500.0,0.00012989,2]
[324838881,1714367442474,-500.0,0.00012989,2]
[324838884,1714367442483,-500.0,0.00012989,2]
[324838886,1714367442493,-500.0,0.00012989,2]
[324838887,1714367442502,-496.9194739,0.00012989,2]
[324838890,1714367442515,-500.0,0.00012989,2]
[324838891,1714367442525,-500.0,0.00012989,2]
[324838894,1714367442534,-500.0,0.00012989,2]
[324838895,1714367442544,-500.0,0.00012989,2]
[324838897,1714367442555,-192.83624308,0.00012989,2]
[324838899,1714367442564,-500.0,0.00012989,2]
[324838902,1714367442574,-452.25515351,0.00012989,2]
[324838903,1714367442583,-500.0,0.00012989,2]
[324838905,1714367442595,-500.0,0.00012989,2]
[324838907,1714367442604,-500.0,0.00012989,2]
[324838909,1714367442612,-500.0,0.00012989,2]
[324838911,1714367442621,-500.0,0.00012989,2]
[324838913,1714367442630,-551.57060465,0.00012989,2]
[324838915,1714367442639,-500.0,0.00012989,2]
[324838917,1714367442648,-500.0,0.00012989,2]
[324838919,1714367442657,-580.43428438,0.00012989,2]
[324838921,1714367442666,-500.0,0.00012989,2]
[324838923,1714367442675,-500.0,0.00012989,2]
[324838925,1714367442684,-500.0,0.00012989,2]
[324838927,1714367442694,-406.95079091,0.00012989,2]
[324838929,1714367442703,-580.46723393,0.00012989,2]
[324838931,1714367442712,-459.75249824,0.00012989,2]
[324838934,1714367442722,-514.36970295,0.00012989,2]
[324838935,1714367442731,-388.01358628,0.00012989,2]
[324838937,1714367442740,-500.0,0.00012989,2]
[324838939,1714367442749,-500.0,0.00012989,2]
[324838942,1714367442758,-500.0,0.00012989,2]
[324838943,1714367442768,-202.95529886,0.00012989,2]
[324838945,1714367442777,-500.0,0.00012989,2]
[324838947,1714367442785,-464.77161257,0.00012989,2]
[324838950,1714367442802,-35.22838743,0.00012989,2]
[324838952,1714367442812,-512.21295909,0.00012989,2]
[324838954,1714367442820,-500.0,0.00012989,2]
[324838956,1714367442830,-551.66,0.00012989,2]
[324838958,1714367442839,-500.0,0.00012989,2]
[324838960,1714367442847,-591.69201387,0.00012989,2]
[324838962,1714367442857,-422.40043323,0.00012989,2]
[324838964,1714367442866,-500.0,0.00012989,2]
[324838966,1714367442875,-500.0,0.00012989,2]
[324838968,1714367442884,-500.0,0.00012989,2]
[324838970,1714367442894,-500.0,0.00012989,2]
[324838972,1714367442903,-1825.8,0.00012989,2]
[324838974,1714367442912,-500.0,0.00012989,2]
[324838976,1714367442921,-503.75490708,0.00012989,2]
[324838979,1714367442930,-500.0,0.00012989,2]
[324838981,1714367442939,-500.0,0.00012989,2]
[324838983,1714367442948,-500.0,0.00012989,2]
[324838985,1714367442958,-500.0,0.00012989,2]
[324838987,1714367442966,-500.0,0.00012989,2]
[324838989,1714367442975,-500.0,0.00012989,2]
[324838991,1714367442984,-500.0,0.00012989,2]
[324838993,1714367442993,-500.0,0.00012989,2]
[324838995,1714367443002,-500.0,0.00012989,2]
[324838997,1714367443011,-642.7747004,0.00012989,2]
[324838999,1714367443020,-887.0,0.0001299,2]
[324839001,1714367443029,-4742.62822375,0.0001299,2]
[324839003,1714367443041,-988.7236,0.0001299,2]
[324839035,1714367443231,-11879.20215,0.0001299,2]
[324839037,1714367443243,-885.9607002,0.0001299,2]
[324839040,1714367443254,-1914.91030117,0.0001299,2]
[324839062,1714367443454,-14748.94847729,0.0001299,2]
[324839081,1714367443745,-11047.7266527,0.0001299,2]
[324839086,1714367443776,422.9541034,8.574e-05,2]
[324839281,1714367446383,-207.78,0.00012178,2]
[324839282,1714367446394,-348.64,0.00012178,2]
[324839283,1714367446404,-250.0,0.00012475,2]
[324839284,1714367446413,-8534.53560554,0.00012987,2]
[324839285,1714367446423,-437.4,0.00012988,2]
[324839286,1714367446433,-6033.18,0.00012989,2]
[324839287,1714367446442,-273201.5071931,0.0001299,2]
[324839288,1714367446455,-868.44016778,0.0001299,2]
[324839289,1714367452000,299.59736826,6.859e-05,2]
[324839290,1714367454340,259.36227069,8.574e-05,2]
[324839291,1714367467620,422.9541034,7.717e-05,2]
[324839292,1714367487628,422.9541034,7.717e-05,2]
[324839293,1714367503628,422.9541034,6.945e-05,2]
[324839294,1714367521639,422.9541034,6.945e-05,2]
[324839295,1714367541633,273.7822349,6.945e-05,2]
[324839300,1714368278462,-274.49477971,9.988e-05,2]
[324839301,1714368278485,-234.48035506,9.992e-05,2]
[324839302,1714368279941,1406.82478706,9.987e-05,2]
[324839465,1714368366830,363.85,9.693e-05,2]
[324839466,1714368396928,3769.77,0.000251,120]
[324839574,1714368632559,-182.99651981,0.00010995,2]
[324839575,1714368632568,-437.00348019,0.00010996,2]
[324839576,1714368632580,-500.87971119,0.00010996,2]
[324839577,1714368632589,-2242.44306066,0.00010997,2]
[324839578,1714368632599,-300.3069704,0.00011,2]
[324839579,1714368632608,-150.0,0.00011322,2]
[324839580,1714368632617,-150.0,0.00011322,2]
[324839581,1714368632627,-1473.73,0.00011323,2]
[324839582,1714368632640,-1348.04118279,0.00011323,2]
[324839583,1714368632652,-472.68881721,0.00011323,2]
[324839584,1714368632662,-15120.69,0.00011381,2]
[324839585,1714368632671,-156.3202367,0.00011465,2]
[324839586,1714368632681,-156.3202367,0.00011471,2]
[324839587,1714368632691,-156.3202367,0.00011476,2]
[324839588,1714368632700,-255.22,0.00011532,2]
[324839589,1714368632709,-1000.0,0.00011576,2]
[324839590,1714368632719,-150.0,0.00011586,2]
[324839591,1714368632729,-150.16,0.00011622,2]
[324839593,1714368632738,-560.88,0.00011659,2]
[324839595,1714368632749,-600.0,0.0001178,2]
[324839597,1714368632758,-363.85,0.00011957,2]
[324839599,1714368632768,-187.07,0.00012165,2]
[324839601,1714368632778,-283.0,0.00012278,2]
[324839603,1714368632787,-306.45,0.00012278,2]
[324839605,1714368632796,-150.0,0.0001241,3]
[324839607,1714368632805,-210.0,0.00012454,2]
[324839609,1714368632815,-210.0,0.00012454,2]
[324839611,1714368632830,-600.0,0.00012602,2]
[324839613,1714368632839,-150.0,0.00012636,2]
[324839615,1714368632848,-183.82473888,0.00012639,2]
[324839617,1714368632857,-150.0,0.00012655,2]
[324839619,1714368632867,-150.0,0.00012682,2]
[324839621,1714368632877,-150.0,0.00012683,2]
[324839623,1714368632886,-150.0,0.0001269,2]
[324839625,1714368632895,-150.0,0.00012699,2]
[324839627,1714368632906,-243.5,0.00012699,2]
[324839629,1714368632915,-321.56536841,0.00012699,2]
[324839656,1714368633165,-82.09419977,0.00012699,2]
[324839659,1714368633175,-500.0,0.00012699,2]
[324839661,1714368633185,-500.0,0.00012699,2]
[324839663,1714368633194,-455.62588828,0.00012699,2]
[324839665,1714368633211,-44.37411172,0.00012699,2]
[324839667,1714368633220,-481.32729574,0.00012699,2]
[324839670,1714368633233,-461.66270426,0.00012699,2]
[324839672,1714368633242,-516.61491285,0.00012699,2]
[324839674,1714368633258,-398.85508715,0.00012699,2]
[324839676,1714368633267,-172.76432184,0.00012699,2]
[324839678,1714368633279,-764.03790892,0.00012699,2]
[324839680,1714368633290,-553.46776924,0.00012699,2]
[324839682,1714368633300,-500.0,0.00012699,2]
[324839684,1714368633309,-209.14150493,0.00012699,2]
[324839730,1714368638555,-497.99362303,0.00012699,2]
[324839731,1714368638568,-38.42487204,0.00012699,2]
[324839732,1714368638578,-500.0,0.00012699,2]
[324839733,1714368638588,-32.59479264,0.00012699,2]
[324839734,1714368638600,-467.40520736,0.00012699,2]
[324839735,1714368638610,-500.0,0.00012699,2]
[324839736,1714368638619,-500.0,0.00012699,2]
[324839737,1714368638629,-887.48,0.00012699,2]
[324839738,1714368638639,-869.03,0.00012699,2]
[324839739,1714368638649,-500.0,0.00012699,2]
[324839740,1714368638658,-500.0,0.00012699,2]
[324839741,1714368638668,-5.68589446,0.00012699,2]
[324839742,1714368638680,-677.43410554,0.00012699,2]
[324839743,1714368638690,-877.63,0.00012699,2]
[324839744,1714368638699,-500.0,0.00012699,2]
[324839745,1714368638709,-500.0,0.00012699,2]
[324839746,1714368638719,-500.0,0.00012699,2]
[324839747,1714368638729,-500.0,0.00012699,2]
[324839748,1714368638738,-500.0,0.00012699,2]
[324839749,1714368638748,-267.96582905,0.00012699,2]
[324839750,1714368638758,-500.0,0.00012699,2]
[324839751,1714368638769,-771.16,0.00012699,2]
[324839752,1714368638778,-781.11,0.00012699,2]
[324839753,1714368638788,-500.0,0.00012699,2]
[324839754,1714368638797,-4223.84,0.00012699,2]
[324839755,1714368638807,-500.0,0.00012699,2]
[324839756,1714368638816,-500.0,0.00012699,2]
[324839757,1714368638831,-320.71,0.00012699,2]
[324839758,1714368638841,-7569.84793882,0.000127,2]
[324839759,1714368638886,-404.09928789,0.000127,2]
[324839774,1714368641870,-392.58531307,0.00012699,2]
[324839785,1714368643553,-107.41468693,0.00012699,2]
[324839786,1714368643562,-152.34,0.00012699,2]
[324839788,1714368643572,-140.66431307,0.000127,2]
[324839790,1714368643583,-311.767,0.000127,2]
[324839793,1714368643745,-357.06178067,0.000127,2]
[324839794,1714368643787,-587.73,0.000127,2]
[324839798,1714368646593,-680.35641552,0.00011428,2]
[324839799,1714368646602,-6856.66737868,0.000127,2]
[324839802,1714368646788,-173421.29811665,0.000127,2]